bitfinex-derivatives/quotes_BNBF0:USTF0_20250211
["timestamp","ask_amount","ask_price","bid_price","bid_amount"]
[1739317776792,2.66276861,644.14,643.53,0.31078582]
[1739317776989,2.66276861,644.13,643.53,0.31078582]
[1739317777195,3.663157,644.12,643.53,0.31078582]
[1739317777395,2.66276861,644.11,643.53,0.31078582]
[1739317777597,2.66276861,644.1,643.53,0.31078582]
[1739317777789,2.66276861,644.09,643.53,0.31078582]
[1739317778008,2.66276861,644.08,643.53,0.31078582]
[1739317778294,2.66276861,644.07,643.53,0.31078582]
[1739317778594,2.66276861,644.06,643.53,0.31078582]
[1739317778793,2.66276861,644.05,643.53,0.31078582]
[1739317778995,2.66276861,644.04,643.53,0.31078582]
[1739317779294,3.663157,644.03,643.53,0.31078582]
[1739317779490,2.66276861,644.02,643.53,0.31078582]
[1739317779693,2.66276861,644.01,643.53,0.31078582]
[1739317779895,2.66266245,644.0,643.53,0.31078582]
[1739317780092,2.66266245,643.99,643.53,0.31078582]
[1739317780293,2.66266245,643.98,643.53,0.31078582]
[1739317780494,2.66266245,643.97,643.53,0.31078582]
[1739317780694,3.66305084,643.96,643.53,0.31078582]
[1739317780890,2.66266245,643.95,643.53,0.31078582]
[1739317781094,2.66266245,643.94,643.53,0.31078582]
[1739317781294,2.66266245,643.93,643.53,0.31078582]
[1739317781489,2.66266245,643.92,643.53,0.31078582]
[1739317781690,2.66266245,643.91,643.53,0.31078582]
[1739317781895,2.66266245,643.9,643.53,0.31078582]
[1739317782096,2.66266245,643.89,643.53,0.31078582]
[1739317782299,2.66266245,643.88,643.53,0.31078582]
[1739317782489,3.66311351,643.87,643.53,0.31078582]
[1739317782693,2.66272512,643.86,643.53,0.31078582]
[1739317782891,2.66272512,643.85,643.53,0.31078582]
[1739317783091,3.66311351,643.84,643.53,0.31078582]
[1739317783393,2.66272512,643.83,643.53,0.31078582]
[1739317783598,2.66272512,643.82,643.53,0.31078582]
[1739317783793,2.37524842,643.81,643.53,0.31078582]
[1739317783990,1.37486003,643.8,643.53,0.31078582]
[1739317784191,1.37486003,643.79,643.53,0.31078582]
[1739317784396,2.37522386,643.78,643.53,0.31078582]
[1739317784596,1.37483547,643.77,643.53,0.31078582]
[1739317784793,1.37483547,643.76,643.53,0.31078582]
[1739317784994,2.37522386,643.75,643.53,0.31078582]
[1739317785194,1.37488932,643.74,643.53,0.31078582]
[1739317785394,1.00038839,643.73,643.53,0.31078582]
[1739317785895,1.00038839,643.72,643.53,0.31078582]
[1739317786601,1.00038839,643.71,643.53,0.31078582]
[1739317786996,1.00038839,643.7,643.53,0.31078582]
[1739317787494,0.92788647,644.08,643.53,0.31078582]
[1739317787702,2.66278575,644.07,643.53,0.31078582]
[1739317787996,3.66317714,644.06,643.53,0.31078582]
[1739317788204,2.66277644,644.05,643.53,0.31078582]
[1739317788501,3.66316783,644.04,643.53,0.31078582]
[1739317788699,2.66277644,644.03,643.53,0.31078582]
[1739317788902,3.66316783,644.02,643.53,0.31078582]
[1739317789096,2.66277644,644.01,643.53,0.31078582]
[1739317789300,2.66277644,644.0,643.53,0.31078582]
[1739317789501,2.66277644,643.99,643.53,0.31078582]
[1739317789728,2.66277644,643.98,643.53,0.31078582]
[1739317789897,2.66277644,643.97,643.53,0.31078582]
[1739317790098,2.66277644,643.96,643.53,0.31078582]
[1739317790403,2.66277644,643.95,643.53,0.31078582]
[1739317790604,2.66277644,643.94,643.53,0.31078582]
[1739317790798,2.66277644,643.93,643.53,0.31078582]
[1739317791002,2.66277644,643.92,643.53,0.31078582]
[1739317791202,2.66277644,643.91,643.53,0.31078582]
[1739317791503,3.66316783,643.9,643.53,0.31078582]
[1739317791703,2.66277644,643.89,643.53,0.31078582]
[1739317792005,3.66316783,643.88,643.53,0.31078582]
[1739317792203,2.66277644,643.87,643.53,0.31078582]
[1739317792504,2.66277644,643.86,643.53,0.31078582]
[1739317792699,1.00039139,643.88,643.53,0.31078582]
[1739317792700,1.3748535,643.85,643.53,0.31078582]
[1739317792904,3.66337348,643.84,643.53,0.31078582]
[1739317793100,2.66298209,643.83,643.53,0.31078582]
[1739317793302,2.66298209,643.82,643.53,0.31078582]
[1739317793500,2.66298209,643.81,643.53,0.31078582]
[1739317793698,1.00039139,643.82,643.53,0.31078582]
[1739317793699,1.3748535,643.8,643.53,0.31078582]
[1739317793901,1.3748535,643.79,643.53,0.31078582]
[1739317794102,1.3748535,643.78,643.53,0.31078582]
[1739317794302,1.3748535,643.77,643.53,0.31078582]
[1739317794498,1.3748535,643.76,643.53,0.31078582]
[1739317794700,1.00039139,643.78,643.53,0.31078582]
[1739317795005,2.37571737,643.77,643.53,0.31078582]
[1739317795304,1.37532598,643.76,643.53,0.31078582]
[1739317795505,1.00039139,643.76,643.53,0.31078582]
[1739317795905,1.00039139,643.75,643.53,0.31078582]
[1739317796802,0.92803948,644.09,643.53,0.31078582]
[1739317797005,2.98498023,644.84,643.53,0.31078582]
[1739317797006,3.66462188,644.08,643.53,0.31078582]
[1739317797220,2.6638523,644.07,643.53,0.31078582]
[1739317797406,2.6638523,644.06,643.53,0.31078582]
[1739317797605,2.6638523,644.05,643.53,0.31078582]
[1739317797905,2.6638523,644.04,643.53,0.31078582]
[1739317798107,2.6638523,644.03,643.53,0.31078582]
[1739317798302,1.00076958,644.06,643.53,0.31078582]
[1739317798303,2.6638523,644.02,643.53,0.31078582]
[1739317798501,2.6638523,644.01,643.53,0.31078582]
[1739317798703,2.6638523,644.0,643.53,0.31078582]
[1739317798999,2.6638523,643.99,643.53,0.31078582]
[1739317799205,2.6638523,643.98,643.53,0.31078582]
[1739317799400,3.66462188,643.97,643.53,0.31078582]
[1739317799600,2.6638523,643.96,643.53,0.31078582]
[1739317799907,2.6638523,643.95,643.53,0.31078582]
[1739317800101,2.6638523,643.94,643.53,0.31078582]
[1739317800303,2.6638523,643.93,643.53,0.31078582]
[1739317800502,2.6638523,643.92,643.53,0.31078582]
[1739317800705,2.6638523,643.91,643.53,0.31078582]
[1739317800903,3.66462188,643.9,643.53,0.31078582]
[1739317801102,2.6638523,643.89,643.53,0.31078582]
[1739317801306,2.6638523,643.88,643.53,0.31078582]
[1739317801507,2.6638523,643.87,643.53,0.31078582]
[1739317801809,2.6638523,643.86,643.53,0.31078582]
[1739317802011,1.28843445,643.85,643.53,0.31078582]
[1739317802211,1.00076958,643.87,643.53,0.31078582]
[1739317802212,2.66418378,643.84,643.53,0.31078582]
[1739317802406,2.66418378,643.83,643.53,0.31078582]
[1739317802608,2.66418378,643.82,643.53,0.31078582]
[1739317802806,2.66418378,643.81,643.53,0.31078582]
[1739317803104,3.66495336,643.8,643.53,0.31078582]
[1739317803302,1.37574933,643.79,643.53,0.31078582]
[1739317803507,2.37651891,643.78,643.53,0.31078582]
[1739317803704,1.37574933,643.77,643.53,0.31078582]
[1739317803907,1.37574933,643.76,643.53,0.31078582]
[1739317804104,1.37574933,643.75,643.53,0.31078582]
[1739317804309,1.37574933,643.74,643.53,0.31078582]
[1739317804511,1.37574933,643.73,643.53,0.31078582]
[1739317804708,1.37574933,643.72,643.53,0.31078582]
[1739317804909,1.37574933,643.71,643.53,0.31078582]
[1739317805207,1.00076958,643.71,643.53,0.31078582]
[1739317805411,0.92803948,644.03,643.53,0.31078582]
[1739317805605,2.66458852,644.02,643.53,0.31078582]
[1739317805809,2.98498023,645.02,643.53,0.31078582]
[1739317805810,0.92803948,644.0,643.53,0.31078582]
[1739317806009,2.66458852,643.99,643.53,0.31078582]
[1739317806211,2.66458852,643.98,643.53,0.31078582]
[1739317806411,2.66458852,643.97,643.53,0.31078582]
[1739317806609,3.66565158,643.96,643.53,0.31078582]
[1739317806806,2.66463724,643.95,643.53,0.31078582]
[1739317807007,2.66463724,643.94,643.53,0.31078582]
[1739317807206,2.66463724,643.93,643.53,0.31078582]
[1739317807410,2.66463724,643.92,643.53,0.31078582]
[1739317807608,2.66463724,643.91,643.53,0.31078582]
[1739317807808,2.66463724,643.9,643.53,0.31078582]
[1739317808028,2.66463724,643.89,643.53,0.31078582]
[1739317808211,2.66463724,643.88,643.53,0.31078582]
[1739317808410,2.66482737,643.87,643.53,0.31078582]
[1739317808610,1.00106306,643.9,643.53,0.31078582]
[1739317808611,2.66482737,643.86,643.53,0.31078582]
[1739317808813,2.66482737,643.85,643.53,0.31078582]
[1739317809116,2.66482737,643.84,643.53,0.31078582]
[1739317809413,2.66482737,643.83,643.53,0.31078582]
[1739317809615,2.66482737,643.82,643.53,0.31078582]
[1739317809814,2.66482737,643.81,643.53,0.31078582]
[1739317810014,2.66482737,643.8,643.53,0.31078582]
[1739317810221,2.66482737,643.79,643.53,0.31078582]
[1739317810409,2.66482737,643.78,643.53,0.31078582]
[1739317810716,2.66482737,643.77,643.53,0.31078582]
[1739317810911,1.37597703,643.76,643.53,0.31078582]
[1739317811215,1.37597703,643.75,643.53,0.31078582]
[1739317811509,2.37704009,643.74,643.53,0.31078582]
[1739317811715,1.37597703,643.73,643.53,0.31078582]
[1739317811916,1.37597703,643.72,643.53,0.31078582]
[1739317812115,1.00106306,643.74,643.53,0.31078582]
[1739317812351,1.37604897,643.73,643.53,0.31078582]
[1739317812617,1.37604897,643.72,643.53,0.31078582]
[1739317812909,2.37711203,643.71,643.53,0.31078582]
[1739317813115,1.00106306,643.71,643.53,0.31078582]
[1739317813912,1.00106306,643.7,643.53,0.31078582]
[1739317814519,0.92888664,643.95,643.53,0.31078582]
[1739317814718,3.59450237,643.94,643.53,0.31078582]
[1739317815020,3.66707232,643.93,643.53,0.31078582]
[1739317815221,2.66561573,643.92,643.53,0.31078582]
[1739317815521,2.66561573,643.91,643.53,0.31078582]
[1739317815721,2.66561573,643.9,643.53,0.31078582]
[1739317815916,2.66561573,643.89,643.53,0.31078582]
[1739317816122,2.66561573,643.88,643.53,0.31078582]
[1739317816323,2.66561573,643.87,643.53,0.31078582]
[1739317816517,2.66561573,643.86,643.53,0.31078582]
[1739317816717,2.66561573,643.85,643.53,0.31078582]
[1739317816916,2.66561573,643.84,643.53,0.31078582]
[1739317817116,2.66561573,643.83,643.53,0.31078582]
[1739317817321,2.66561573,643.82,643.53,0.31078582]
[1739317817517,1.37631703,643.81,643.53,0.31078582]
[1739317817724,1.37631703,643.8,643.53,0.31078582]
[1739317817923,1.37631703,643.79,643.53,0.31078582]
[1739317818121,1.37631703,643.78,643.53,0.31078582]
[1739317818424,1.37631703,643.77,643.53,0.31078582]
[1739317818617,1.37631703,643.76,643.53,0.31078582]
[1739317818817,1.37631703,643.75,643.53,0.31078582]
[1739317819121,1.00145659,643.74,643.53,0.31078582]
[1739317819822,0.92888664,644.07,643.53,0.31078582]
[1739317819823,1.00145659,643.73,643.53,0.31078582]
[1739317820416,0.92914397,644.06,643.53,0.31078582]
[1739317820615,2.66666167,644.05,643.53,0.31078582]
[1739317820820,2.66666167,644.04,643.53,0.31078582]
[1739317821021,2.66666167,644.03,643.53,0.31078582]
[1739317821324,3.66849928,644.02,643.53,0.31078582]
[1739317821623,2.66666167,644.01,643.53,0.31078582]
[1739317821826,2.66666167,644.0,643.53,0.31078582]
[1739317822021,2.66666167,643.99,643.53,0.31078582]
[1739317822222,2.66666167,643.98,643.53,0.31078582]
[1739317822524,2.66666167,643.97,643.53,0.31078582]
[1739317822721,1.37702299,643.96,643.53,0.31078582]
[1739317822925,2.6669429,643.95,643.53,0.31078582]
[1739317823118,2.6669429,643.94,643.53,0.31078582]
[1739317823318,2.66677835,643.93,643.53,0.31078582]
[1739317823519,2.66677835,643.92,643.53,0.31078582]
[1739317823719,3.66861596,643.91,643.53,0.31078582]
[1739317824019,2.66677835,643.9,643.53,0.31078582]
[1739317824223,2.66677835,643.89,643.53,0.31078582]
[1739317824419,3.66861596,643.88,643.53,0.31078582]
[1739317824618,1.37693971,643.87,643.53,0.31078582]
[1739317824824,1.37693971,643.86,643.53,0.31078582]
[1739317825124,2.37877856,643.85,643.53,0.31078582]
[1739317825324,1.37694095,643.84,643.53,0.31078582]
[1739317825521,1.00183761,643.83,643.53,0.31078582]
[1739317825725,1.37702971,643.82,643.53,0.31078582]
[1739317825925,1.37702971,643.81,643.53,0.31078582]
[1739317826121,1.00183761,643.81,643.53,0.31078582]
[1739317826519,1.00183761,643.8,643.53,0.31078582]
[1739317826723,1.00183761,643.79,643.53,0.31078582]
[1739317827127,1.00183761,643.78,643.53,0.31078582]
[1739317827725,0.92937685,644.1,643.53,0.31078582]
[1739317827925,2.66720153,644.09,643.53,0.31078582]
[1739317828121,2.66720153,644.08,643.53,0.31078582]
[1739317828322,3.66920279,644.07,643.53,0.31078582]
[1739317828526,2.66720153,644.06,643.53,0.31078582]
[1739317828726,2.66720153,644.05,643.53,0.31078582]
[1739317829024,2.66720153,644.04,643.53,0.31078582]
[1739317829329,2.66722783,644.03,643.53,0.31078582]
[1739317829549,2.66722783,644.02,643.53,0.31078582]
[1739317829723,2.66722783,644.01,643.53,0.31078582]
[1739317829926,2.66722783,644.0,643.53,0.31078582]
[1739317830123,2.66722783,643.99,643.53,0.31078582]
[1739317830325,2.66722783,643.98,643.53,0.31078582]
[1739317830550,2.66722783,643.97,643.53,0.31078582]
[1739317830730,2.66722783,643.96,643.53,0.31078582]
[1739317830929,2.66722783,643.95,643.53,0.31078582]
[1739317831224,2.66723148,643.94,643.53,0.31078582]
[1739317831423,2.66723148,643.93,643.53,0.31078582]
[1739317831637,2.66723148,643.92,643.53,0.31078582]
[1739317831827,2.66731441,643.91,643.53,0.31078582]
[1739317832030,2.66731441,643.9,643.53,0.31078582]
[1739317832229,2.66731441,643.89,643.53,0.31078582]
[1739317832423,3.66931567,643.88,643.53,0.31078582]
[1739317832631,2.66731441,643.87,643.53,0.31078582]
[1739317832826,1.37726086,643.86,643.53,0.31078582]
[1739317833022,1.37726086,643.85,643.53,0.31078582]
[1739317833228,1.00200126,643.86,643.53,0.31078582]
[1739317833229,1.37726086,643.84,643.53,0.31078582]
[1739317833426,2.37938023,643.83,643.53,0.31078582]
[1739317833625,1.37737897,643.82,643.53,0.31078582]
[1739317833864,1.00200126,643.83,643.53,0.31078582]
[1739317834124,2.37937853,643.82,643.53,0.31078582]
[1739317834331,1.37737727,643.81,643.53,0.31078582]
[1739317834628,1.37744821,643.8,643.53,0.31078582]
[1739317834822,1.37744821,643.79,643.53,0.31078582]
[1739317835026,1.37744821,643.78,643.53,0.31078582]
[1739317835226,1.00200126,643.77,643.53,0.31078582]
[1739317835923,1.00200126,643.76,643.53,0.31078582]
[1739317836323,0.92954158,644.04,643.53,0.31078582]
[1739317836528,0.92954158,644.01,643.53,0.31078582]
[1739317836723,2.66784772,644.0,643.53,0.31078582]
[1739317836924,2.66784772,643.99,643.53,0.31078582]
[1739317837126,2.66784772,643.98,643.53,0.31078582]
[1739317837327,2.66784772,643.97,643.53,0.31078582]
[1739317837531,2.66784772,643.96,643.53,0.31078582]
[1739317837830,2.66784772,643.95,643.53,0.31078582]
[1739317838026,2.66784772,643.94,643.53,0.31078582]
[1739317838227,2.66784772,643.93,643.53,0.31078582]
[1739317838426,2.66784772,643.92,643.53,0.31078582]
[1739317838626,2.66784772,643.91,643.53,0.31078582]
[1739317838828,2.66784772,643.9,643.53,0.31078582]
[1739317839028,2.66784772,643.89,643.53,0.31078582]
[1739317839232,3.67010261,643.88,643.53,0.31078582]
[1739317839428,2.66784772,643.87,643.53,0.31078582]
[1739317839626,2.66804149,643.86,643.53,0.31078582]
[1739317839829,2.66804149,643.85,643.53,0.31078582]
[1739317840028,1.00225489,643.85,643.53,0.31078582]
[1739317840227,2.6681352,643.84,643.53,0.31078582]
[1739317840430,2.6681352,643.83,643.53,0.31078582]
[1739317840732,2.6681352,643.82,643.53,0.31078582]
[1739317841038,3.67039009,643.81,643.53,0.31078582]
[1739317841235,1.37762241,643.8,643.53,0.31078582]
[1739317841435,1.37762241,643.79,643.53,0.31078582]
[1739317841736,2.3798773,643.78,643.53,0.31078582]
[1739317841928,1.37762241,643.77,643.53,0.31078582]
[1739317842229,1.37762241,643.76,643.53,0.31078582]
[1739317842431,2.3798773,643.75,643.53,0.31078582]
[1739317842628,1.37762241,643.74,643.53,0.31078582]
[1739317842832,1.37762241,643.73,643.53,0.31078582]
[1739317843134,1.00225489,643.72,643.53,0.31078582]
[1739317843531,1.00225489,643.71,643.53,0.31078582]
[1739317844130,0.9297338,644.13,643.53,0.31078582]
[1739317844330,2.66817871,644.12,643.53,0.31078582]
[1739317844535,2.66817871,644.11,643.53,0.31078582]
[1739317844734,2.66817871,644.1,643.53,0.31078582]
[1739317844933,2.66817871,644.09,643.53,0.31078582]
[1739317845134,2.66817871,644.08,643.53,0.31078582]
[1739317845332,3.67057776,644.07,643.53,0.31078582]
[1739317845534,2.66817871,644.06,643.53,0.31078582]
[1739317845767,2.66817871,644.05,643.53,0.31078582]
[1739317845931,2.66817871,644.04,643.53,0.31078582]
[1739317846133,2.66817871,644.03,643.53,0.31078582]
[1739317846334,2.66817871,644.02,643.53,0.31078582]
[1739317846536,2.66817871,644.01,643.53,0.31078582]
[1739317846735,2.66817871,644.0,643.53,0.31078582]
[1739317846932,2.66817871,643.99,643.53,0.31078582]
[1739317847131,3.67057776,643.98,643.53,0.31078582]
[1739317847333,2.66817871,643.97,643.53,0.31078582]
[1739317847535,2.66817871,643.96,643.53,0.31078582]
[1739317847735,2.66817871,643.95,643.53,0.31078582]
[1739317847957,2.66817871,643.94,643.53,0.31078582]
[1739317848132,2.3800535,643.93,643.53,0.31078582]
[1739317848337,2.66836245,643.92,643.53,0.31078582]
[1739317848638,0.92989308,644.01,643.53,0.31078582]
[1739317848934,3.67109136,644.0,643.53,0.31078582]
[1739317849133,2.6685461,643.99,643.53,0.31078582]
[1739317849437,2.6685461,643.98,643.53,0.31078582]
[1739317849634,2.6685461,643.97,643.53,0.31078582]
[1739317849838,2.6685461,643.96,643.53,0.31078582]
[1739317850055,3.67109136,643.95,643.53,0.31078582]
[1739317850236,2.6685461,643.94,643.53,0.31078582]
[1739317850433,2.6685461,643.93,643.53,0.31078582]
[1739317850635,1.00254526,643.95,643.53,0.31078582]
[1739317850636,2.6685461,643.92,643.53,0.31078582]
[1739317850833,0.92989091,643.97,643.53,0.31078582]
[1739317850834,3.67109136,643.91,643.53,0.31078582]
[1739317851036,2.6685461,643.9,643.53,0.31078582]
[1739317851248,2.6685461,643.89,643.53,0.31078582]
[1739317851439,3.67109136,643.88,643.53,0.31078582]
[1739317851640,2.6685461,643.87,643.53,0.31078582]
[1739317851837,2.6685461,643.86,643.53,0.31078582]
[1739317852033,2.6685461,643.85,643.53,0.31078582]
[1739317852341,3.67110156,643.84,643.53,0.31078582]
[1739317852538,2.6685563,643.83,643.53,0.31078582]
[1739317852734,2.6685563,643.82,643.53,0.31078582]
[1739317852934,2.6685563,643.81,643.53,0.31078582]
[1739317853238,2.6685563,643.8,643.53,0.31078582]
[1739317853434,2.38038482,643.79,643.53,0.31078582]
[1739317853632,1.37783956,643.78,643.53,0.31078582]
[1739317853838,1.00254526,643.78,643.53,0.31078582]
[1739317854644,0.92976161,644.08,643.53,0.31078582]
[1739317854941,1.37770829,644.07,643.53,0.31078582]
[1739317855139,1.37770829,644.06,643.53,0.31078582]
[1739317855336,1.37770829,644.05,643.53,0.31078582]
[1739317855541,1.37770829,644.04,643.53,0.31078582]
[1739317855737,1.37770829,644.03,643.53,0.31078582]
[1739317855938,1.37770829,644.02,643.53,0.31078582]
[1739317856136,2.38009511,644.01,643.53,0.31078582]
[1739317856337,1.37770829,644.0,643.53,0.31078582]
[1739317856544,1.37770829,643.99,643.53,0.31078582]
[1739317856745,2.38009511,643.98,643.53,0.31078582]
[1739317856945,1.37770829,643.97,643.53,0.31078582]
[1739317857145,2.38009511,643.96,643.53,0.31078582]
[1739317857344,1.37770829,643.95,643.53,0.31078582]
[1739317857546,1.37770829,643.94,643.53,0.31078582]
[1739317857747,2.38009511,643.93,643.53,0.31078582]
[1739317857943,1.37770829,643.92,643.53,0.31078582]
[1739317858143,1.37770829,643.91,643.53,0.31078582]
[1739317858339,1.37770829,643.9,643.53,0.31078582]
[1739317858540,1.00238682,643.92,643.53,0.31078582]
[1739317858743,1.37768264,643.91,643.53,0.31078582]
[1739317858947,1.37768264,643.9,643.53,0.31078582]
[1739317859141,1.37768264,643.89,643.53,0.31078582]
[1739317859342,1.37768264,643.88,643.53,0.31078582]
[1739317859648,2.38006946,643.87,643.53,0.31078582]
[1739317859947,1.37768264,643.86,643.53,0.31078582]
[1739317860148,2.38006946,643.85,643.53,0.31078582]
[1739317860449,1.37768264,643.84,643.53,0.31078582]
[1739317860648,1.37768264,643.83,643.53,0.31078582]
[1739317860849,2.38006946,643.82,643.53,0.31078582]
[1739317861048,1.37768264,643.81,643.53,0.31078582]
[1739317861347,1.37768264,643.8,643.53,0.31078582]
[1739317861548,2.38006946,643.79,643.53,0.31078582]
[1739317861744,1.37768264,643.78,643.53,0.31078582]
[1739317861950,1.37768264,643.77,643.53,0.31078582]
[1739317862152,1.00238682,643.79,643.53,0.31078582]
[1739317862351,1.00238682,643.76,643.53,0.31078582]
[1739317863447,1.00238682,643.75,643.53,0.31078582]
[1739317863647,1.00238682,643.74,643.53,0.31078582]
[1739317864246,0.92989686,644.08,643.53,0.31078582]
[1739317864449,1.37787319,644.07,643.53,0.31078582]
[1739317864645,1.37787319,644.06,643.53,0.31078582]
[1739317864846,2.38044,644.05,643.53,0.31078582]
[1739317865050,1.37787319,644.04,643.53,0.31078582]
[1739317865251,1.37787319,644.03,643.53,0.31078582]
[1739317865448,1.37787319,644.02,643.53,0.31078582]
[1739317865649,1.37787319,644.01,643.53,0.31078582]
[1739317865852,2.30777005,644.0,643.53,0.31078582]
[1739317866155,2.30777005,643.99,643.53,0.31078582]
[1739317866455,1.37787319,643.98,643.53,0.31078582]
[1739317866653,1.37787319,643.97,643.53,0.31078582]
[1739317866854,1.37787319,643.96,643.53,0.31078582]
[1739317867150,1.37787319,643.95,643.53,0.31078582]
[1739317867356,1.37787319,643.94,643.53,0.31078582]
[1739317867654,1.37787319,643.93,643.53,0.31078582]
[1739317867857,1.37787319,643.92,643.53,0.31078582]
[1739317868057,1.37787319,643.91,643.53,0.31078582]
[1739317868260,1.37787319,643.9,643.53,0.31078582]
[1739317868452,1.37787319,643.89,643.53,0.31078582]
[1739317868654,1.37787319,643.88,643.53,0.31078582]
[1739317868859,1.37787319,643.87,643.53,0.31078582]
[1739317869059,1.37787319,643.86,643.53,0.31078582]
[1739317869260,1.37787319,643.85,643.53,0.31078582]
[1739317869454,1.37787319,643.84,643.53,0.31078582]
[1739317869655,1.37787319,643.83,643.53,0.31078582]
[1739317869857,1.37787319,643.82,643.53,0.31078582]
[1739317870058,1.37787319,643.81,643.53,0.31078582]
[1739317870256,1.37787319,643.8,643.53,0.31078582]
[1739317870458,1.3783039,643.79,643.53,0.31078582]
[1739317870658,1.3783039,643.78,643.53,0.31078582]
[1739317870859,1.3783039,643.77,643.53,0.31078582]
[1739317871055,1.00256681,643.81,643.53,0.31078582]
[1739317871056,1.3783039,643.76,643.53,0.31078582]
[1739317871259,1.3783039,643.75,643.53,0.31078582]
[1739317871457,1.3783039,643.74,643.53,0.31078582]
[1739317871656,1.3783039,643.73,643.53,0.31078582]
[1739317871856,1.3783039,643.72,643.53,0.31078582]
[1739317872062,1.3783039,643.71,643.53,0.31078582]
[1739317872258,1.00256681,643.72,643.53,0.31078582]
[1739317872460,1.3784154,643.71,643.53,0.31078582]
[1739317872657,1.00256681,643.71,643.53,0.31078582]
[1739317873263,1.00256681,643.7,643.53,0.31078582]
[1739317873861,0.92989686,643.94,643.53,0.31078582]
[1739317874058,1.37843412,643.93,643.53,0.31078582]
[1739317874264,1.37843412,643.92,643.53,0.31078582]
[1739317874563,1.37843412,643.91,643.53,0.31078582]
[1739317874763,1.37843412,643.9,643.53,0.31078582]
[1739317874965,1.00300912,643.92,643.53,0.31078582]
[1739317874966,1.37843412,643.89,643.53,0.31078582]
[1739317875165,1.37843412,643.88,643.53,0.31078582]
[1739317875458,2.38144324,643.87,643.53,0.31078582]
[1739317875665,1.37843412,643.86,643.53,0.31078582]
[1739317875864,1.37843412,643.85,643.53,0.31078582]
[1739317876065,1.37843412,643.84,643.53,0.31078582]
[1739317876363,1.37843412,643.83,643.53,0.31078582]
[1739317876564,1.37843412,643.82,643.53,0.31078582]
[1739317876759,1.37860887,643.81,643.53,0.31078582]
[1739317876959,1.37860887,643.8,643.53,0.31078582]
[1739317877166,1.37860887,643.79,643.54,1.15564507]
[1739317877463,1.37860887,643.78,643.55,0.31077616]
[1739317877665,1.37860887,643.77,643.55,0.31077616]
[1739317877863,1.37860887,643.76,643.55,0.31077616]
[1739317878059,1.37860887,643.75,643.55,0.31077616]
[1739317878263,1.00300912,643.77,643.55,0.31077616]
[1739317878557,1.00300912,643.74,643.55,0.31077616]
[1739317878963,0.92989686,644.06,643.55,0.31077616]
[1739317879164,2.3088762,644.05,643.55,0.31077616]
[1739317879465,2.38157283,644.04,643.55,0.31077616]
[1739317879667,1.37854979,644.03,643.55,0.31077616]
[1739317879860,1.37854979,644.02,643.55,0.31077616]
[1739317880062,1.37854979,644.01,643.55,0.31077616]
[1739317880259,1.37854979,644.0,643.55,0.31077616]
[1739317880562,1.37854979,643.99,643.55,0.31077616]
[1739317880760,1.37854979,643.98,643.55,0.31077616]
[1739317880966,1.37847911,643.97,643.55,0.31077616]
[1739317881193,1.37847911,643.96,643.55,0.31077616]
[1739317881361,1.00302304,643.95,643.55,0.31077616]
[1739317881564,1.37850714,643.94,643.55,0.31077616]
[1739317881760,1.37850714,643.93,643.55,0.31077616]
[1739317881965,1.37850714,643.92,643.55,0.31077616]
[1739317882166,1.37850714,643.91,643.55,0.31077616]
[1739317882366,1.37850714,643.9,643.55,0.31077616]
[1739317882561,1.37850714,643.89,643.55,0.31077616]
[1739317882763,1.37850714,643.88,643.55,0.31077616]
[1739317882964,1.00302304,643.91,643.55,0.31077616]
[1739317883165,1.00302304,643.87,643.55,0.31077616]
[1739317883366,1.37844038,643.86,643.55,0.31077616]
[1739317883567,1.37844038,643.85,643.55,0.31077616]
[1739317883864,1.37844038,643.84,643.55,0.31077616]
[1739317884062,1.37844038,643.83,643.55,0.31077616]
[1739317884263,1.37844038,643.82,643.55,0.31077616]
[1739317884569,1.37844038,643.81,643.55,0.31077616]
[1739317884768,1.37844038,643.8,643.55,0.31077616]
[1739317884970,1.00302304,643.79,643.55,0.31077616]
[1739317885966,1.00302304,643.78,643.55,0.31077616]
[1739317886669,0.93031365,644.11,643.55,0.31077616]
[1739317886873,1.37830499,644.1,643.55,0.31077616]
[1739317887070,1.37830499,644.09,643.55,0.31077616]
[1739317887268,1.37830499,644.08,643.55,0.31077616]
[1739317887467,1.37830499,644.07,643.55,0.31077616]
[1739317887773,1.37830499,644.06,643.55,0.31077616]
[1739317887968,2.38116078,644.05,643.55,0.31077616]
[1739317888174,1.37830499,644.04,643.55,0.31077616]
[1739317888375,1.37830499,644.03,643.55,0.31077616]
[1739317888677,2.38116078,644.02,643.55,0.31077616]
[1739317888974,1.37830499,644.01,643.55,0.31077616]
[1739317889174,2.38116078,644.0,643.55,0.31077616]
[1739317889370,1.37823195,643.99,643.55,0.31077616]
[1739317889571,1.37823195,643.98,643.55,0.31077616]
[1739317889769,2.38108774,643.97,643.55,0.31077616]
[1739317889969,1.37823195,643.96,643.55,0.31077616]
[1739317890174,1.37823195,643.95,643.55,0.31077616]
[1739317890375,2.38108774,643.94,643.55,0.31077616]
[1739317890574,1.37823195,643.93,643.55,0.31077616]
[1739317890776,1.37823195,643.92,643.55,0.31077616]
[1739317891075,1.37823195,643.91,643.55,0.31077616]
[1739317891276,1.37823195,643.9,643.55,0.31077616]
[1739317891476,1.37818024,643.89,643.55,0.31077616]
[1739317891676,2.38103603,643.88,643.55,0.31077616]